bitfinex-derivatives/quotes_ETHF0:USTF0_20260221
["timestamp","ask_amount","ask_price","bid_price","bid_amount"]
[1771650516284,0.56638671,1962.5,1962.1,0.56964124]
[1771650519294,4.26635494,1962.6,1962.1,0.56964124]
[1771650519295,4.87102603,1962.6,1962.1,0.56964124]
[1771650519694,0.60467109,1962.5,1962.1,0.56964124]
[1771650554413,4.84609634,1962.6,1962.1,0.56964124]
[1771650554615,0.56494487,1962.6,1962.1,0.56964124]
[1771650601758,0.5710768,1962.5,1962.0,0.57803741]
[1771650623370,1.66283317,1962.4,1961.8,0.56451668]
[1771650623574,0.58369306,1962.1,1961.6,0.56958886]
[1771650652112,4.82764082,1962.3,1961.6,0.56958886]
[1771650652411,0.54917713,1962.2,1961.6,0.56958886]
[1771650666923,0.54917713,1962.2,1961.6,0.00507218]
[1771650667227,0.54917713,1962.1,1961.5,0.5721554]
[1771650667615,4.28269657,1962.2,1961.5,0.5721554]
[1771650667825,0.54510081,1962.2,1961.5,0.5721554]
[1771650668026,0.54510081,1962.2,1961.5,0.57758223]
[1771650675326,0.57433709,1962.1,1961.5,0.00542683]
[1771650678531,4.85703366,1962.1,1961.5,0.00542683]
[1771650678735,0.57433709,1962.0,1961.5,0.00542683]
[1771650685638,0.57433709,1962.0,1961.5,0.58298088]
[1771650685842,0.57433709,1962.1,1961.5,0.58298088]
[1771650696748,4.28269657,1962.2,1961.5,0.58298088]
[1771650696947,0.57433709,1962.1,1961.5,0.58298088]
[1771650709866,0.57433709,1962.1,1961.6,0.57529131]
[1771650732287,0.55662067,1961.9,1961.4,0.55368366]
[1771650733384,0.55662067,1961.9,1961.4,0.55971495]
[1771650734582,1.66336969,1962.0,1961.4,0.55971495]
[1771650734887,0.55662067,1962.1,1961.4,0.55971495]
[1771650758806,0.58998529,1961.9,1961.4,0.55971495]
[1771650759006,4.28269657,1962.2,1961.4,0.00603129]
[1771650759007,0.58998529,1961.7,1961.4,0.00603129]
[1771650759805,0.58998529,1961.7,1961.4,0.5699488]
[1771650761304,0.58998529,1961.7,1961.4,0.00603129]
[1771650763110,0.58998529,1961.7,1961.4,0.5699488]
[1771650763610,0.58998529,1961.7,1961.4,0.00603129]
[1771650766404,0.58998529,1961.7,1961.4,0.5699488]
[1771650766610,0.58998529,1961.9,1961.4,0.5699488]
[1771650768111,0.58998529,1962.1,1961.4,0.5699488]
[1771650768304,0.58998529,1962.1,1961.6,0.56391751]
[1771650782017,0.58998529,1962.1,1961.4,0.00603129]
[1771650782315,0.58998529,1962.1,1961.4,0.5699488]
[1771650803037,0.55587823,1962.0,1961.4,0.5699488]
[1771650835557,4.2765975,1962.1,1961.4,0.5699488]
[1771650835760,4.8243934,1962.1,1961.4,0.5699488]
[1771650836462,0.5477959,1962.0,1961.4,0.5699488]
[1771650872803,0.58734972,1961.9,1961.4,0.5699488]
[1771650873598,0.58734972,1961.9,1961.4,0.00603129]
[1771650880201,0.58734972,1961.9,1961.5,0.57700037]
[1771650880408,0.58977606,1962.0,1961.6,0.57700037]
[1771650885009,0.58977606,1962.0,1961.4,0.58303166]
[1771650885215,0.58977606,1961.9,1961.4,0.00603129]
[1771650887212,1.66389618,1961.8,1961.1,6.99386369]
[1771650887416,0.58977606,1961.7,1961.1,0.57700037]
[1771650888313,0.58977606,1961.7,1961.1,0.58264063]
[1771650891923,4.87019789,1961.9,1961.2,0.57700037]
[1771650892217,0.58977606,1961.9,1961.2,0.57700037]
[1771650912933,0.58977606,1961.9,1961.3,0.55713134]
[1771650914738,0.54917401,1962.1,1961.3,0.55713134]
[1771650921437,4.8262126,1962.3,1961.3,0.55713134]
[1771650921637,4.8262126,1962.3,1961.1,8.08663567]
[1771650921638,0.54917401,1962.3,1961.5,0.55713134]
[1771650925940,0.54917401,1962.2,1961.5,0.55713134]
[1771650931549,4.8262126,1962.2,1961.5,0.55713134]
[1771650931750,0.54917401,1962.1,1961.5,0.55713134]
[1771650935550,0.54917401,1962.2,1961.5,0.55713134]
[1771650936149,0.54917401,1962.4,1961.8,0.55713134]
[1771650949363,0.57446087,1962.6,1962.1,0.58334082]
[1771650953867,0.57446087,1962.6,1962.2,0.58334082]
[1771650954367,0.57060864,1962.7,1962.2,0.58334082]
[1771650955369,0.5750461,1962.7,1962.2,0.58334082]
[1771650955568,0.00443746,1962.7,1962.2,0.58334082]
[1771650955970,0.5750461,1962.7,1962.2,0.58334082]
[1771650956472,0.5750461,1962.7,1962.0,0.58334082]
[1771650959074,0.5750461,1962.7,1962.2,0.58334082]
[1771650960569,0.00443746,1962.7,1962.2,0.58334082]
[1771650964366,4.26711582,1962.9,1962.4,0.58334082]
[1771650964566,6.66330037,1963.1,1962.4,0.58334082]
[1771650964567,4.26711582,1963.1,1962.4,0.58334082]
[1771650964775,0.57060864,1963.1,1962.6,0.58334082]
[1771650965474,0.57550712,1963.1,1962.6,0.58718604]
[1771650980901,0.56157724,1963.3,1962.8,0.57529202]
[1771650982000,0.56530367,1963.3,1962.8,0.57529202]
[1771650982300,0.56157724,1963.4,1963.0,0.57529202]
[1771650983203,0.56655774,1963.4,1963.0,0.57529202]
[1771650985194,0.0049805,1963.4,1963.0,0.57529202]
[1771650987603,0.56157724,1963.7,1963.1,0.57529202]
[1771650988698,0.56588897,1963.7,1963.1,0.57529202]
[1771650996903,0.00431173,1963.7,1963.1,0.57529202]
[1771650999109,0.00431173,1963.7,1963.2,1.66241443]
[1771650999306,0.59134034,1963.9,1963.3,0.5806705]
[1771651000108,2.25375477,1964.0,1963.3,0.5806705]
[1771651000303,2.26004988,1964.0,1963.3,0.5806705]
[1771651001303,0.59134034,1963.9,1963.3,0.5806705]
[1771651005815,1.66870954,1964.0,1963.3,0.5806705]
[1771651006020,0.59134034,1963.9,1963.3,0.5806705]
[1771651020524,0.59134034,1963.9,1962.8,9.63546307]
[1771651020525,0.59134034,1963.9,1963.0,0.5806705]
[1771651021015,0.00629511,1964.0,1963.0,0.5806705]
[1771651021219,0.59763545,1964.0,1963.0,0.5806705]
[1771651030732,4.84290988,1963.9,1963.1,0.54985326]
[1771651032828,0.58007477,1963.8,1963.1,0.54985326]
[1771651033430,0.58007477,1963.8,1963.2,0.54985326]
[1771651072569,0.58007477,1963.8,1963.0,6.95719698]
[1771651072769,0.59725759,1963.7,1962.9,0.57735627]
[1771651075872,0.59725759,1963.7,1963.0,0.57735627]
[1771651080471,0.60016966,1963.5,1963.0,0.57735627]
[1771651080866,0.60016966,1963.3,1962.7,0.57735627]
[1771651082078,1.91574086,1963.8,1962.6,0.58120149]
[1771651082079,0.60016966,1963.1,1962.6,0.58120149]
[1771651082879,0.60008181,1962.6,1962.0,0.57735627]
[1771651083777,0.60405753,1962.6,1962.0,0.58334468]
[1771651085487,0.60016966,1963.0,1962.6,0.57735627]
[1771651085985,5.92386597,1963.5,1962.6,0.57735627]
[1771651085986,0.60016966,1963.4,1962.6,0.57735627]
[1771651086484,0.60388469,1963.4,1962.6,0.57735627]
[1771651097601,0.58613602,1963.2,1962.6,0.57735627]
[1771651106503,0.58985105,1963.4,1962.6,0.57735627]
[1771651107514,2.24716688,1963.0,1962.4,0.59794487]
[1771651107699,0.58613602,1963.0,1962.4,0.59794487]
[1771651116619,0.58613602,1963.0,1962.4,2.25897573]
[1771651116916,0.58613602,1963.0,1962.5,0.59794487]
[1771651121220,4.25471935,1963.3,1962.5,0.59794487]
[1771651121419,0.57463111,1963.2,1962.5,0.59794487]
[1771651126222,0.57463111,1963.1,1962.5,0.59794487]
[1771651135023,0.57463111,1962.9,1962.5,0.59794487]
[1771651140129,0.57463111,1963.1,1962.5,0.59794487]
[1771651141334,0.57463111,1963.2,1962.5,0.59794487]
[1771651152243,4.82157046,1963.3,1962.5,0.59794487]
[1771651152832,0.56685111,1963.2,1962.5,0.59794487]
[1771651164558,0.56685111,1963.3,1962.5,0.59794487]
[1771651165055,0.56685111,1963.3,1962.5,6.96243958]
[1771651165355,0.56685111,1963.3,1962.6,0.56611072]
[1771651165760,0.00371503,1963.4,1962.6,0.56611072]
[1771651165957,0.57056614,1963.4,1962.6,0.56611072]
[1771651181372,0.55774792,1963.3,1962.4,6.36449471]
[1771651181573,0.55774792,1963.3,1962.2,8.88358907]
[1771651181574,0.55774792,1963.2,1962.5,0.54728849]
[1771651188673,0.55774792,1963.3,1962.5,0.54728849]
[1771651199891,0.55774792,1963.3,1962.6,0.54728849]
[1771651201587,4.27859079,1963.4,1962.8,0.54728849]
[1771651201891,0.56146295,1963.4,1962.8,0.54728849]
[1771651205388,0.56146295,1963.4,1962.6,0.54728849]
[1771651205590,0.55774792,1963.2,1962.6,0.54728849]
[1771651206399,0.55774792,1963.0,1962.6,0.54728849]
[1771651219801,0.557746,1963.2,1962.6,0.54728849]
[1771651235816,0.557746,1962.8,1962.4,0.57331476]
[1771651236622,5.93652213,1963.1,1962.4,0.57331476]
[1771651236623,0.557746,1963.1,1962.4,0.57331476]
[1771651236823,4.83262176,1963.2,1962.4,0.57331476]
[1771651237323,0.557746,1963.1,1962.4,0.57331476]
[1771651241528,4.84909629,1963.2,1962.4,0.57331476]
[1771651241825,0.57422053,1963.2,1962.4,0.57331476]
[1771651245732,0.57884457,1963.1,1962.4,0.57331476]
[1771651249236,0.57884457,1963.1,1962.3,0.57645418]
[1771651249237,0.57751627,1962.6,1962.3,0.57645418]
[1771651249733,0.57751627,1962.8,1962.3,0.57645418]
[1771651250736,0.57060345,1963.0,1962.3,0.57645418]
[1771651251431,0.57060345,1963.1,1962.5,0.57645418]
[1771651270058,4.8438273,1963.2,1962.5,0.57645418]
[1771651270349,0.56625952,1963.2,1962.5,0.57645418]
[1771651282158,0.56625952,1963.1,1962.5,0.57645418]
[1771651311088,0.56612668,1962.9,1962.4,0.59904243]
[1771651316490,0.56612668,1962.9,1962.2,0.59904243]
[1771651321901,0.56612668,1962.8,1962.2,0.59904243]
[1771651325901,0.56612668,1962.6,1962.2,0.59904243]
[1771651331299,1.66260562,1962.7,1962.2,0.59904243]
[1771651331505,4.83620148,1963.0,1962.2,0.59904243]
[1771651331699,0.5586337,1962.9,1962.2,0.59904243]
[1771651338108,4.83276588,1962.9,1962.2,0.59904243]
[1771651338306,0.5586337,1962.8,1962.2,0.59904243]
[1771651340408,4.27413218,1962.9,1962.2,0.59904243]
[1771651340609,4.83276588,1962.9,1962.2,0.59904243]
[1771651347512,0.5586337,1962.8,1962.2,0.59904243]
[1771651348409,4.27413218,1962.9,1962.4,0.59443789]
[1771651348616,4.83276588,1963.0,1962.4,0.59443789]
[1771651349316,4.83276588,1963.1,1962.4,0.59443789]
[1771651349516,0.5586337,1963.1,1962.6,0.59443789]
[1771651349816,4.83276588,1963.2,1962.6,0.59443789]
[1771651350214,0.5586337,1963.2,1962.6,0.59443789]
[1771651358032,0.57232434,1963.3,1962.6,0.59443789]
[1771651379254,4.84645652,1963.3,1962.6,0.59443789]
[1771651379854,0.57232434,1963.2,1962.6,0.59443789]
[1771651380261,4.27784721,1963.4,1962.8,0.54747035]
[1771651380555,0.57603937,1963.4,1962.8,0.54747035]
[1771651387458,0.00371503,1963.4,1962.8,0.54747035]
[1771651392061,0.55310459,1963.4,1962.8,0.54747035]
[1771651393459,0.00371503,1963.4,1962.8,0.54747035]
[1771651395461,0.55310459,1963.4,1962.8,0.54747035]
[1771651411173,0.55310459,1963.4,1962.6,6.94216387]
[1771651411368,0.55310459,1963.4,1962.7,0.57766916]
[1771651423780,0.00371503,1963.4,1962.7,0.57766916]
[1771651426185,0.6061635,1963.4,1962.7,0.57766916]
[1771651449107,0.6061635,1963.4,1962.7,6.94216387]
[1771651449310,0.6061635,1963.4,1962.8,0.57151075]
[1771651451610,0.00371503,1963.4,1962.9,0.57151075]
[1771651466917,0.56850646,1963.4,1962.9,0.57151075]
[1771651467124,0.56479143,1963.3,1962.9,0.57151075]
[1771651472228,0.56479143,1963.3,1962.7,0.57151075]
[1771651493338,0.56479143,1963.3,1962.8,0.57443662]
[1771651496238,0.00371503,1963.4,1963.1,0.57443662]
[1771651496839,0.55523457,1963.4,1963.1,0.57443662]
[1771651504546,0.55523457,1963.4,1962.9,0.57443662]
[1771651506854,0.55523457,1963.4,1962.7,0.57443662]
[1771651507156,0.55151954,1963.2,1962.7,0.57443662]
[1771651507952,0.55151954,1963.2,1962.4,1.91092805]
[1771651508454,0.55151954,1963.2,1962.5,0.56242066]
[1771651509548,0.58999849,1963.1,1962.4,1.91092805]
[1771651510050,0.58999849,1963.1,1962.4,0.56242066]
[1771651511659,0.58999849,1963.1,1962.3,0.56242066]
[1771651512654,0.58999849,1963.1,1962.1,0.56242066]
[1771651534362,0.58999849,1963.0,1962.1,0.56242066]
[1771651537275,0.58999849,1962.9,1962.1,0.56242066]
[1771651543575,4.2769909,1963.0,1962.2,0.59429046]
[1771651543776,4.84498043,1963.1,1962.2,0.59429046]
[1771651544179,4.84635356,1963.1,1962.2,0.59429046]
[1771651545681,0.56798953,1963.0,1962.2,0.59429046]
[1771651547383,0.56798953,1963.0,1962.3,0.59429046]
[1771651548985,0.56798953,1962.9,1962.3,0.59429046]
[1771651561292,0.56798953,1962.9,1962.2,0.59429046]
[1771651561493,0.56798953,1962.9,1962.1,0.59429046]
[1771651561494,0.56798953,1962.8,1962.1,0.59429046]
[1771651561797,0.56798953,1962.7,1962.1,0.59429046]
[1771651562193,0.56798953,1962.7,1962.0,0.00598841]
[1771651562390,0.56798953,1962.4,1961.7,0.59429046]
[1771651563297,0.56798953,1962.4,1961.7,0.60036752]
[1771651564299,0.56798953,1962.6,1961.7,0.60036752]
[1771651567906,0.58877279,1962.5,1961.8,0.58170853]
[1771651568716,0.55467803,1962.7,1962.0,0.59039187]
[1771651572804,4.83304206,1962.9,1962.0,0.59039187]
[1771651573005,0.55467803,1962.9,1962.4,0.59039187]
[1771651576914,0.55467803,1963.1,1962.4,0.59039187]
[1771651578111,0.55467803,1963.0,1962.4,0.59039187]
[1771651597831,0.58106848,1963.1,1962.6,0.55785322]
[1771651609137,4.26791524,1963.2,1962.6,0.55785322]
[1771651609437,4.84898372,1963.3,1962.6,0.55785322]
[1771651610632,0.58106848,1963.3,1962.6,0.55785322]
[1771651622652,0.58106848,1963.3,1962.8,0.55785322]
[1771651648758,0.58106848,1963.3,1962.6,0.60052599]
[1771651648960,0.55638262,1963.2,1962.6,0.60052599]
[1771651665788,0.00371503,1963.4,1962.6,0.60052599]
[1771651666086,0.55743659,1963.4,1962.6,0.60052599]
[1771651672889,0.55372156,1963.3,1962.6,0.60052599]
[1771651677395,0.55743659,1963.4,1962.6,0.60052599]
[1771651677595,0.55743659,1963.4,1962.7,0.58017042]
[1771651680797,0.00371503,1963.4,1962.7,0.58017042]
[1771651680992,0.00371503,1963.4,1962.7,2.24163138]
[1771651681197,0.00371503,1963.4,1962.8,0.58017042]
[1771651689902,0.00371503,1963.4,1963.0,0.56091404]
[1771651691403,0.58535433,1963.6,1963.0,0.56091404]
[1771651692394,0.59075371,1963.6,1963.0,0.56091404]
[1771651692600,0.00539938,1963.6,1963.0,0.56091404]
[1771651717822,8.23228878,1964.0,1963.0,0.56091404]
[1771651718017,1.66095077,1963.8,1963.0,0.56091404]
[1771651718523,1.66095077,1963.8,1963.2,0.60469396]
[1771651718720,1.12689251,1963.8,1963.5,4.87360219]
[1771651718920,0.55998199,1963.8,1963.6,7.13363905]
[1771651719119,1.13294235,1963.8,1963.7,5.94874905]
[1771651719432,1.13294235,1963.8,1963.5,8.68247869]
[1771651719729,0.57673656,1963.8,1963.5,4.41357046]
[1771651720130,0.57673656,1963.8,1963.5,3.8088765]
[1771651720431,0.57296036,1963.8,1963.6,3.805]
[1771651721431,0.57711638,1963.8,1963.6,3.805]
[1771651723327,0.57711638,1963.8,1963.5,5.07790767]
[1771651723938,0.00415602,1963.8,1963.6,1.26903117]
[1771651725939,0.00415602,1963.8,1963.6,5.07403117]
[1771651726234,0.57296036,1964.1,1963.6,5.08664659]
[1771651726435,0.57296036,1964.1,1963.6,3.805]
[1771651726837,0.57296036,1964.1,1963.6,5.09764929]
[1771651727037,0.57896127,1964.1,1963.6,5.09764929]
[1771651727636,0.57896127,1964.1,1963.7,1.29123072]
[1771651731034,0.57896127,1964.1,1963.7,5.09623072]
[1771651731437,0.57896127,1964.1,1963.8,6.41158855]
[1771651731637,0.57896127,1964.1,1963.7,5.09623072]
[1771651731836,0.57896127,1964.1,1963.8,6.41156104]
[1771651732034,0.57896127,1964.1,1963.7,5.09623072]
[1771651732234,0.57896127,1964.1,1963.8,6.4115859]
[1771651732433,0.57896127,1964.1,1963.7,5.09623072]
[1771651732641,0.57896127,1964.1,1963.8,6.41104253]
[1771651732938,0.57896127,1964.1,1963.7,5.09623072]
[1771651733139,0.57896127,1964.1,1963.8,6.41101338]
[1771651733339,0.57896127,1964.1,1963.7,5.09623072]
[1771651733536,0.57896127,1964.1,1963.8,6.41059528]
[1771651733736,0.57896127,1964.1,1963.7,5.09623072]
[1771651733936,0.57896127,1964.1,1963.8,6.41059674]
[1771651734136,0.57896127,1964.1,1963.7,5.09623072]
[1771651734336,0.57896127,1964.1,1963.8,6.41015264]
[1771651734534,0.57896127,1964.1,1963.7,1.29123072]
[1771651734736,0.57896127,1964.1,1963.8,6.40937938]
[1771651734935,0.57896127,1964.1,1963.7,1.29123072]
[1771651735137,0.57896127,1964.1,1963.8,6.409381]
[1771651735333,0.57896127,1964.1,1963.7,1.29123072]
[1771651735539,0.57896127,1964.1,1963.8,6.40896244]
[1771651735738,0.57896127,1964.1,1963.7,1.29123072]
[1771651736041,0.57896127,1964.1,1963.8,6.40896306]
[1771651736341,0.57896127,1964.1,1963.7,5.09623072]
[1771651736532,0.57896127,1964.1,1963.8,6.4089265]
[1771651736731,0.57896127,1964.1,1963.7,5.09623072]
[1771651736932,0.57896127,1964.1,1963.8,6.40892309]
[1771651737133,0.57896127,1964.1,1963.7,5.09623072]
[1771651737332,0.57896127,1964.1,1963.8,6.40892672]
[1771651737531,0.57896127,1964.1,1963.7,5.09623072]
[1771651737732,0.57896127,1964.1,1963.8,7.70361569]
[1771651737933,0.57896127,1964.1,1963.7,5.09970875]
[1771651738136,0.57896127,1964.1,1963.8,6.40891038]
[1771651738335,0.57896127,1964.1,1963.8,1.30129471]
[1771651741141,0.57896127,1964.1,1963.7,1.30692163]
[1771651741340,0.57896127,1964.1,1963.8,6.40939281]
[1771651741541,0.57896127,1964.1,1963.7,1.30692163]
[1771651741746,0.57896127,1964.1,1963.8,6.40971166]
[1771651742045,0.57896127,1964.1,1963.7,1.30692163]
[1771651742246,0.57896127,1964.1,1963.8,6.55679103]
[1771651742543,0.57896127,1964.1,1963.7,1.30692163]
[1771651742744,0.57896127,1964.1,1963.8,6.55720809]
[1771651742940,0.57896127,1964.1,1963.7,1.30692163]
[1771651743136,0.57896127,1964.1,1963.8,6.55716833]
[1771651743336,0.57896127,1964.1,1963.7,1.30692163]
[1771651743542,0.57896127,1964.1,1963.8,6.55573518]
[1771651743743,0.57896127,1964.1,1963.7,1.30692163]
[1771651743944,0.57896127,1964.1,1963.8,6.55582758]
[1771651744246,0.57896127,1964.1,1963.7,1.30692163]
[1771651744446,0.57896127,1964.1,1963.8,6.55641481]
[1771651744646,0.57896127,1964.1,1963.7,1.30692163]
[1771651744846,0.57896127,1964.1,1963.8,6.55643941]
[1771651745046,0.57896127,1964.1,1963.7,1.30692163]
[1771651745243,0.57896127,1964.1,1963.8,6.55638474]
[1771651745441,0.57896127,1964.1,1963.7,1.30692163]
[1771651745642,0.57896127,1964.1,1963.8,6.55711703]
[1771651745847,0.57896127,1964.1,1963.7,1.30692163]
[1771651746043,0.57896127,1964.1,1963.8,6.55709034]
[1771651746245,0.57896127,1964.1,1963.9,3.805]
[1771651746450,0.57896127,1964.1,1964.0,2.52884]
[1771651746649,0.57896127,1964.1,1963.8,0.28011917]
[1771651747253,0.57896127,1964.1,1963.9,6.55889552]
[1771651747453,0.57896127,1964.1,1963.8,8.58218324]
[1771651747850,0.57896127,1964.1,1963.9,6.55900991]
[1771651748049,0.57896127,1964.1,1963.8,8.58218324]
[1771651748251,0.57896127,1964.1,1963.9,6.54746387]
[1771651748450,0.57896127,1964.1,1963.8,8.58218324]
[1771651748750,0.57896127,1964.1,1963.9,6.54754295]
[1771651748949,0.57896127,1964.1,1963.8,8.58218324]
[1771651749151,0.57896127,1964.1,1963.9,6.54757393]
[1771651749452,0.57896127,1964.1,1963.8,8.58218324]
[1771651749654,0.57896127,1964.1,1963.9,6.54874279]
[1771651749844,0.57896127,1964.1,1963.8,8.58218324]
[1771651750048,0.57896127,1964.1,1963.9,6.54879457]
[1771651750248,0.57896127,1964.1,1963.8,8.58218324]
[1771651750448,0.57896127,1964.1,1963.9,6.54945299]
[1771651750647,0.00600091,1964.1,1963.8,8.58218324]
[1771651750847,8.88114367,1964.1,1963.9,15.04193325]
[1771651751048,8.88114367,1964.1,1963.9,8.49253254]
[1771651751254,0.00600091,1964.1,1963.9,8.49253254]
[1771651752158,0.00600091,1964.1,1964.0,9.17e-06]
[1771651752650,8.88114367,1964.1,1964.0,9.17e-06]
[1771651752857,8.88114367,1964.1,1963.5,10.72278473]
[1771651753155,8.88114367,1964.1,1963.6,6.3386587]
[1771651753355,8.88114367,1964.1,1963.7,5.8025287]
[1771651753554,8.88114367,1964.1,1963.5,8.49640904]
[1771651758057,8.88114367,1964.1,1963.6,3.805]
[1771651758258,8.88114367,1964.1,1963.6,12.29753254]
[1771651761960,0.25458,1964.8,1963.7,8.49253254]
[1771651762160,8.87514276,1964.7,1963.7,8.49253254]
[1771651762562,8.87514276,1964.7,1963.8,8.49253254]
[1771651763064,8.87514276,1964.7,1963.9,8.49253254]
[1771651763065,8.87911806,1964.7,1963.9,8.49253254]
[1771651763463,10.95437877,1964.7,1963.9,8.49253254]
[1771651765264,10.95437877,1964.7,1964.0,6.23909001]
[1771651765464,8.87514276,1964.5,1964.1,8.49253254]
[1771651767768,10.95040347,1964.5,1964.1,8.49253254]
[1771651767970,8.87514276,1964.5,1963.8,8.49253254]
[1771651768169,8.87514276,1964.5,1963.9,14.72838427]
[1771651768365,8.87514276,1964.5,1964.0,14.72838427]
[1771651768669,10.95040347,1964.5,1964.0,8.49253254]
[1771651775372,8.87514276,1964.5,1964.0,8.49253254]
[1771651775574,10.95040347,1964.5,1964.0,8.49253254]
[1771651776169,2.07526071,1964.4,1964.0,8.49253254]
[1771651776374,10.95040347,1964.4,1964.0,8.49253254]
[1771651777975,8.87514276,1964.4,1964.0,8.49253254]
[1771651778174,10.95040347,1964.4,1964.0,8.49253254]
[1771651778869,2.07526071,1964.4,1964.0,8.49253254]
[1771651780675,2.07526071,1964.3,1964.0,8.49253254]
[1771651780876,8.18215241,1964.5,1964.0,8.49253254]
[1771651781178,2.07526071,1964.4,1964.0,8.49253254]
[1771651781378,8.18215241,1964.5,1964.0,8.49253254]
[1771651781777,2.07526071,1964.4,1964.0,8.49253254]
[1771651782077,8.18215241,1964.5,1964.0,8.49253254]
[1771651782278,2.07526071,1964.4,1964.0,8.49253254]
[1771651782471,8.18215241,1964.5,1964.0,8.49253254]
[1771651782970,2.07526071,1964.4,1964.0,8.49253254]
[1771651783166,8.18215241,1964.5,1964.0,8.49253254]
[1771651783368,2.07526071,1964.4,1964.0,8.49253254]
[1771651783877,2.07526071,1964.3,1964.0,8.49253254]
[1771651784072,8.18215241,1964.5,1964.0,8.49253254]
[1771651784274,2.07526071,1964.4,1964.0,8.49253254]
[1771651785078,2.07526071,1964.3,1964.0,8.49253254]
[1771651785377,8.18215241,1964.5,1964.0,8.49253254]
[1771651785579,2.07526071,1964.3,1964.0,8.49253254]
[1771651786570,2.07526071,1964.2,1964.0,8.49253254]
[1771651786774,8.18215241,1964.5,1964.0,8.49253254]
[1771651786975,2.07526071,1964.3,1964.0,8.49253254]
[1771651787270,8.18215241,1964.5,1964.0,8.49253254]
[1771651787478,2.07526071,1964.3,1964.0,8.49253254]
[1771651787676,8.18215241,1964.5,1964.0,8.49253254]
[1771651788183,8.18215241,1964.6,1964.0,8.49253254]
[1771651788576,0.55203849,1964.4,1964.0,8.49253254]
[1771651788982,0.55203849,1964.3,1964.0,8.49253254]
[1771651789177,8.18215241,1964.6,1964.0,8.49253254]
[1771651789577,0.55203849,1964.4,1964.0,8.49253254]
[1771651789774,8.18215241,1964.6,1964.0,8.49253254]
[1771651789974,0.55203849,1964.4,1964.0,8.49253254]
[1771651790483,0.55203849,1964.4,1964.2,8.04339234]
[1771651790782,0.55203849,1964.3,1964.2,8.04339234]
[1771651792286,0.55203849,1964.3,1964.2,14.29727382]
[1771651792487,0.55203849,1964.3,1964.2,8.04339234]
[1771651792687,0.55203849,1964.3,1964.2,14.29726929]
[1771651792884,0.55203849,1964.3,1964.2,8.04339234]
[1771651793084,0.55203849,1964.3,1964.2,14.29726929]
[1771651793283,0.55203849,1964.3,1964.2,8.04339234]
[1771651793583,8.18215241,1964.5,1964.2,14.2972901]
[1771651793891,8.18215241,1964.5,1964.2,8.04339234]
[1771651800391,0.0039753,1964.7,1964.2,8.04339234]
[1771651800596,8.18215241,1965.0,1964.4,8.04339234]
[1771651800793,8.18215241,1965.0,1964.5,6.25038393]
[1771651800993,8.18215241,1965.0,1964.4,8.04339234]
[1771651801194,8.18215241,1965.0,1964.5,6.25000938]
[1771651801396,8.18215241,1965.0,1964.4,8.04339234]
[1771651801590,8.18582543,1965.0,1964.5,14.28715012]
[1771651801794,8.18582543,1965.0,1964.5,8.04339234]
[1771651803800,0.00367302,1965.0,1964.5,8.04339234]
[1771651809401,0.00367302,1965.0,1964.7,6.92499964]
[1771651809803,0.25451,1965.3,1964.7,6.92499964]
[1771651810310,7.46926125,1965.2,1964.7,6.92499964]
[1771651810706,7.47510638,1965.2,1964.7,6.92499964]
[1771651810907,7.47510638,1965.2,1964.3,4.26890823]
[1771651810908,7.47510638,1965.2,1964.4,6.92499964]
[1771651811107,7.47510638,1965.2,1964.5,13.14739334]
[1771651811307,7.47510638,1965.2,1964.5,6.92499964]
[1771651812714,7.46926125,1965.0,1964.5,6.92499964]
[1771651818418,7.46926125,1964.8,1964.5,6.92499964]
[1771651822420,7.46926125,1964.8,1964.2,6.92499964]
[1771651822616,7.46926125,1964.8,1964.4,6.92499964]
[1771651829332,7.46926125,1964.8,1964.5,6.2366957]
[1771651829533,7.46926125,1964.8,1964.4,6.92499964]
[1771651829733,7.46926125,1964.8,1964.5,6.23669768]
[1771651829933,7.46926125,1964.8,1964.4,6.92499964]
[1771651830234,7.46926125,1964.8,1964.5,6.23667137]
[1771651830430,7.46926125,1964.8,1964.4,6.92499964]
[1771651830629,7.46926125,1964.8,1964.5,6.2368059]
[1771651830829,7.46926125,1964.8,1964.4,6.92499964]
[1771651831024,7.46926125,1964.8,1964.5,6.23636861]
[1771651831230,7.46926125,1964.8,1964.4,6.92499964]
[1771651831427,7.46926125,1964.8,1964.5,6.23622271]
[1771651831631,7.46926125,1964.8,1964.4,6.92499964]
[1771651831933,7.46926125,1964.8,1964.5,6.23624803]
[1771651832134,7.46926125,1964.8,1964.4,6.92499964]
[1771651832434,7.46926125,1964.8,1964.5,6.21830777]
[1771651832632,7.46926125,1964.8,1964.4,6.92499964]
[1771651832835,7.46926125,1964.8,1964.5,6.21867114]
[1771651833034,7.46926125,1964.8,1964.4,6.92499964]
[1771651833229,7.46926125,1964.8,1964.5,6.21865042]
[1771651833430,7.46926125,1964.8,1964.4,6.92499964]
[1771651833729,7.46926125,1964.8,1964.5,6.21880171]
[1771651833927,7.46926125,1964.8,1964.4,6.92499964]
[1771651834130,7.46926125,1964.8,1964.5,6.21880084]
[1771651834329,7.46926125,1964.8,1964.4,6.92499964]
[1771651834528,7.46926125,1964.8,1964.5,6.21873493]
[1771651834737,7.46926125,1964.8,1964.4,6.92499964]
[1771651834938,7.46926125,1964.8,1964.5,6.21871362]
[1771651835238,7.46926125,1964.8,1964.6,3.805]
[1771651841045,7.46926125,1964.8,1964.7,3.2489862]
[1771651841252,7.46926125,1964.8,1964.4,6.92499964]
[1771651841453,7.46926125,1964.8,1964.5,6.22014229]
[1771651841642,7.46926125,1964.8,1964.5,3.805]
[1771651849251,7.46926125,1964.8,1964.4,1.88217248]
[1771651853062,7.46926125,1964.8,1964.3,6.23082593]
[1771651853257,7.46926125,1964.8,1964.4,6.09050825]
[1771651853457,7.46926125,1964.8,1964.3,6.23082593]
[1771651853660,7.46926125,1964.8,1964.4,6.09098012]
[1771651853856,7.46926125,1964.8,1964.3,6.23082593]
[1771651854057,7.46926125,1964.8,1964.4,6.09100246]
[1771651854257,7.46926125,1964.8,1964.3,6.23082593]
[1771651854458,7.46926125,1964.8,1964.4,6.09054658]
[1771651854659,7.46926125,1964.8,1964.3,6.23082593]
[1771651854860,7.46926125,1964.8,1964.4,6.09054295]
[1771651855059,7.46926125,1964.8,1964.3,6.23082593]
[1771651855261,7.46926125,1964.8,1964.4,6.09054765]
[1771651855563,7.46926125,1964.8,1964.2,8.11299841]
[1771651855764,7.46926125,1964.8,1964.3,12.3210288]
[1771651855963,7.46926125,1964.8,1964.4,6.09020287]
[1771651856159,7.46926125,1964.8,1964.3,6.23082593]
[1771651856360,7.46926125,1964.8,1964.4,6.09022281]
[1771651856560,7.46926125,1964.8,1964.3,6.23082593]
[1771651856759,7.46926125,1964.8,1964.4,6.08986267]
[1771651856960,7.46926125,1964.8,1964.3,6.23082593]
[1771651857164,7.46926125,1964.8,1964.4,6.0898623]
[1771651857363,7.46926125,1964.8,1964.3,6.23082593]
[1771651857665,7.46926125,1964.8,1964.4,6.09003806]
[1771651857861,7.46926125,1964.8,1964.3,6.23082593]
[1771651858061,7.46926125,1964.8,1964.4,6.0900372]
[1771651858261,7.46926125,1964.8,1964.3,6.23082593]
[1771651858561,7.46926125,1964.8,1964.4,6.08982618]